[Event "*** Titled Tuesday Blitz"]
[Site "Chess.com"]
[Date "2021.04.06"]
[Round "4"]
[White "LawrenceTrent"]
[Black "queen_iryna"]
[Result "1-0"]
[WhiteElo "2550"]
[BlackElo "2323"]
[TimeControl "180+1"]
[EndTime "10:40:50 PDT"]
[Termination "LawrenceTrent won by resignation"]

1. d4 {[%clk 0:03:00.9]} 1... d6 {[%clk 0:03:00.9]} 2. Nc3 {[%clk 0:03:01.8]}
2... Nf6 {[%clk 0:02:56.5]} 3. e4 {[%clk 0:03:02]} 3... e5 {[%clk 0:02:55.8]} 4.
Nf3 {[%clk 0:03:02.1]} 4... Nbd7 {[%clk 0:02:55.4]} 5. g4 {[%clk 0:03:01.8]}
5... d5 {[%clk 0:02:54.9]} 6. exd5 {[%clk 0:02:49]} 6... e4 {[%clk 0:02:47.7]}
7. Ne5 {[%clk 0:02:48.2]} 7... Bb4 {[%clk 0:02:44.6]} 8. Bd2 {[%clk 0:02:38.8]}
8... Bxc3 {[%clk 0:02:40.4]} 9. bxc3 {[%clk 0:02:34.9]} 9... Nxe5 {[%clk
0:02:37]} 10. dxe5 {[%clk 0:02:35.8]} 10... Nxg4 {[%clk 0:02:37.1]} 11. e6
{[%clk 0:02:36.1]} 11... Qh4 {[%clk 0:02:26.1]} 12. Qe2 {[%clk 0:02:35.9]} 12...
fxe6 {[%clk 0:02:22.3]} 13. Rg1 {[%clk 0:02:28.3]} 13... exd5 {[%clk 0:02:17]}
14. O-O-O {[%clk 0:02:23.3]} 14... O-O {[%clk 0:01:43.4]} 15. Be1 {[%clk
0:02:05.6]} 15... Qh6+ {[%clk 0:01:35.6]} 16. Kb2 {[%clk 0:02:03.3]} 16... Ne5
{[%clk 0:01:32.5]} 17. Rxd5 {[%clk 0:02:01]} 17... Nf3 {[%clk 0:01:19.2]} 18.
Rg3 {[%clk 0:01:58.4]} 18... Bf5 {[%clk 0:01:04]} 19. Bd2 {[%clk 0:01:16.3]}
19... Nxd2 {[%clk 0:01:03.2]} 20. Rxd2 {[%clk 0:01:14.7]} 20... Rad8 {[%clk
0:00:50.7]} 21. Rxd8 {[%clk 0:01:08.3]} 21... Rxd8 {[%clk 0:00:51.6]} 22. Qc4+
{[%clk 0:01:08.2]} 22... Kh8 {[%clk 0:00:43.7]} 23. Qxc7 {[%clk 0:01:08.1]}
23... Qb6+ {[%clk 0:00:37.9]} 24. Qxb6 {[%clk 0:01:07.9]} 24... axb6 {[%clk
0:00:38.8]} 25. f3 {[%clk 0:00:55.8]} 25... exf3 {[%clk 0:00:36.4]} 26. Rxf3
{[%clk 0:00:55.7]} 26... g6 {[%clk 0:00:36.6]} 27. Bd3 {[%clk 0:00:54.9]} 27...
Rd5 {[%clk 0:00:24.2]} 28. c4 {[%clk 0:00:51.3]} 28... Re5 {[%clk 0:00:22.9]}
29. Kc3 {[%clk 0:00:51.4]} 29... Kg7 {[%clk 0:00:22.2]} 30. Kd4 {[%clk
0:00:51.7]} 30... Kf6 {[%clk 0:00:22.3]} 31. Bxf5 {[%clk 0:00:51.2]} 31... gxf5
{[%clk 0:00:21.7]} 32. Rh3 {[%clk 0:00:46.7]} 32... Re4+ {[%clk 0:00:19.1]} 33.
Kd5 {[%clk 0:00:47]} 33... Kg6 {[%clk 0:00:18.8]} 34. Rb3 {[%clk 0:00:45.3]}
34... Re2 {[%clk 0:00:17.5]} 35. Rxb6+ {[%clk 0:00:44.7]} 35... Kg5 {[%clk
0:00:17.9]} 36. Rxb7 {[%clk 0:00:45]} 36... Rxc2 {[%clk 0:00:17.5]} 37. Rxh7
{[%clk 0:00:43.2]} 37... f4 {[%clk 0:00:17.4]} 38. h4+ {[%clk 0:00:39]} 38...
Kg4 {[%clk 0:00:17.2]} 39. h5 {[%clk 0:00:35.8]} 39... Rxa2 {[%clk 0:00:16.8]}
40. Rf7 {[%clk 0:00:33.9]} 40... f3 {[%clk 0:00:16.7]} 41. h6 {[%clk 0:00:33.9]}
41... Rh2 {[%clk 0:00:16.3]} 42. h7 {[%clk 0:00:33.3]} 42... Kg3 {[%clk
0:00:16.6]} 43. c5 {[%clk 0:00:31.2]} 43... f2 {[%clk 0:00:16.9]} 44. c6 {[%clk
0:00:31.2]} 44... Kg2 {[%clk 0:00:17.2]} 45. c7 {[%clk 0:00:29.5]} 45... Rh5+
{[%clk 0:00:17]} 46. Kd4 {[%clk 0:00:24.3]} 46... Rxh7 {[%clk 0:00:16.1]} 47.
Rxh7 {[%clk 0:00:19.5]} 47... f1=Q {[%clk 0:00:16]} 48. c8=Q {[%clk 0:00:15.5]}
48... Qd1+ {[%clk 0:00:15.5]} 49. Ke5 {[%clk 0:00:15.2]} 49... Qa1+ {[%clk
0:00:13.3]} 50. Ke6 {[%clk 0:00:11.5]} 50... Qe1+ {[%clk 0:00:12.8]} 51. Kf7
{[%clk 0:00:10.8]} 51... Qf2+ {[%clk 0:00:10.8]} 52. Kg8 {[%clk 0:00:10.5]}
52... Qa2+ {[%clk 0:00:10.2]} 53. Rf7 {[%clk 0:00:10.3]} 53... Kg3 {[%clk
0:00:05.3]} 54. Qc7+ {[%clk 0:00:09.7]} 54... Kg4 {[%clk 0:00:04.8]} 55. Qf4+
{[%clk 0:00:08.9]} 55... Kh3 {[%clk 0:00:04.2]} 56. Qf3+ {[%clk 0:00:09.2]}
56... Kh4 {[%clk 0:00:03.4]} 57. Qf2+ {[%clk 0:00:09.6]} 1-0

[Event "*** Titled Tuesday Blitz"]
[Site "Chess.com"]
[Date "2021.04.06"]
[Round "4"]
[White "Brave_spirit12"]
[Black "K_A_S_T_O_R"]
[Result "1-0"]
[WhiteElo "2565"]
[BlackElo "2787"]
[TimeControl "180+1"]
[EndTime "10:40:52 PDT"]
[Termination "Brave_spirit12 won by resignation"]

1. e4 {[%clk 0:03:00.9]} 1... c5 {[%clk 0:02:59.5]} 2. c3 {[%clk 0:03:00.9]}
2... Nf6 {[%clk 0:02:58.9]} 3. e5 {[%clk 0:03:00.6]} 3... Nd5 {[%clk 0:02:59.2]}
4. d4 {[%clk 0:03:01.5]} 4... cxd4 {[%clk 0:02:58.8]} 5. cxd4 {[%clk 0:03:02.4]}
5... d6 {[%clk 0:02:58]} 6. Nf3 {[%clk 0:03:02.4]} 6... Nc6 {[%clk 0:02:56.8]}
7. Nc3 {[%clk 0:03:02.9]} 7... dxe5 {[%clk 0:02:49.3]} 8. Nxe5 {[%clk
0:03:01.4]} 8... Nxc3 {[%clk 0:02:42.1]} 9. bxc3 {[%clk 0:03:02.3]} 9... Nxe5
{[%clk 0:02:41.2]} 10. dxe5 {[%clk 0:03:03.2]} 10... Qxd1+ {[%clk 0:02:39.1]}
11. Kxd1 {[%clk 0:03:04.1]} 11... Bd7 {[%clk 0:02:39]} 12. Kc2 {[%clk
0:02:57.9]} 12... Bc6 {[%clk 0:02:36.4]} 13. Be3 {[%clk 0:02:55.5]} 13... e6
{[%clk 0:02:31.2]} 14. f3 {[%clk 0:02:54]} 14... a6 {[%clk 0:02:26.2]} 15. a4
{[%clk 0:02:52.4]} 15... O-O-O {[%clk 0:02:23.6]} 16. a5 {[%clk 0:02:50.4]}
16... Rd5 {[%clk 0:02:00.6]} 17. Bd4 {[%clk 0:02:45.6]} 17... Bc5 {[%clk
0:01:50.9]} 18. Bc4 {[%clk 0:02:35.2]} 18... Rxd4 {[%clk 0:01:50.5]} 19. cxd4
{[%clk 0:02:25.1]} 19... Bxd4 {[%clk 0:01:50.8]} 20. Rae1 {[%clk 0:02:20.9]}
20... Kc7 {[%clk 0:01:46.9]} 21. Kb3 {[%clk 0:02:20.4]} 21... Rd8 {[%clk
0:01:43.1]} 22. Rhf1 {[%clk 0:02:11.6]} 22... h5 {[%clk 0:01:39]} 23. h4 {[%clk
0:02:01.5]} 23... Rb8 {[%clk 0:01:36.4]} 24. g4 {[%clk 0:01:58.5]} 24... b6
{[%clk 0:01:33.5]} 25. axb6+ {[%clk 0:01:55.9]} 25... Rxb6+ {[%clk 0:01:31.1]}
26. Kc2 {[%clk 0:01:56.5]} 26... Rb2+ {[%clk 0:01:29.2]} 27. Kd3 {[%clk
0:01:54.7]} 27... Bc5 {[%clk 0:01:23.7]} 28. Bxa6 {[%clk 0:01:46.6]} 28... Bb4
{[%clk 0:01:13.8]} 29. Rc1 {[%clk 0:01:41.2]} 29... Kb6 {[%clk 0:01:12]} 30. Rb1
{[%clk 0:01:23.3]} 30... Rd2+ {[%clk 0:01:05.9]} 31. Ke3 {[%clk 0:01:23.1]}
31... Kxa6 {[%clk 0:01:03.5]} 32. Rxb4 {[%clk 0:01:22.5]} 32... Ra2 {[%clk
0:01:03]} 33. gxh5 {[%clk 0:01:20.4]} 33... Ra3+ {[%clk 0:00:58.8]} 34. Kf4
{[%clk 0:01:19.8]} 34... Ka7 {[%clk 0:00:55.2]} 35. Rc1 {[%clk 0:01:14.4]} 35...
Bd5 {[%clk 0:00:51.5]} 36. Rc7+ {[%clk 0:01:12.9]} 36... Ka6 {[%clk 0:00:51.7]}
37. Re4 {[%clk 0:00:26.5]} 37... Bxe4 {[%clk 0:00:44.7]} 38. fxe4 {[%clk
0:00:26.6]} 38... Rh3 {[%clk 0:00:44.4]} 39. Kg4 {[%clk 0:00:25.7]} 39... Re3
{[%clk 0:00:42.8]} 40. Rxf7 {[%clk 0:00:25.9]} 40... Rxe4+ {[%clk 0:00:42.7]}
41. Kg5 {[%clk 0:00:26.6]} 41... Rxe5+ {[%clk 0:00:42.6]} 42. Kg6 {[%clk
0:00:27.1]} 42... Re4 {[%clk 0:00:42.7]} 43. Kxg7 {[%clk 0:00:25]} 43... Rxh4
{[%clk 0:00:42.7]} 44. h6 {[%clk 0:00:25.2]} 44... Kb5 {[%clk 0:00:43.1]} 45.
Re7 {[%clk 0:00:24.6]} 45... Rg4+ {[%clk 0:00:41.8]} 46. Kh8 {[%clk 0:00:18]}
46... Kc6 {[%clk 0:00:41]} 47. Rxe6+ {[%clk 0:00:15.6]} 47... Kd7 {[%clk
0:00:41.9]} 48. Re1 {[%clk 0:00:16]} 48... Kd8 {[%clk 0:00:41.3]} 49. Re6 {[%clk
0:00:13.7]} 49... Kd7 {[%clk 0:00:41]} 50. Re3 {[%clk 0:00:12.5]} 50... Kd8
{[%clk 0:00:41]} 51. Re2 {[%clk 0:00:12.6]} 51... Kd7 {[%clk 0:00:41.1]} 52. Kh7
{[%clk 0:00:13.2]} 52... Kd8 {[%clk 0:00:41.1]} 53. Re6 {[%clk 0:00:13.3]} 53...
Kd7 {[%clk 0:00:38.9]} 54. Rg6 {[%clk 0:00:13.6]} 54... Re4 {[%clk 0:00:37.9]}
55. Rg7+ {[%clk 0:00:10.5]} 55... Ke8 {[%clk 0:00:36.9]} 56. Kg8 {[%clk
0:00:10.9]} 56... Rf4 {[%clk 0:00:35.9]} 57. Rg1 {[%clk 0:00:07.8]} 57... Rf8+
{[%clk 0:00:35]} 58. Kg7 {[%clk 0:00:08.3]} 58... Rf7+ {[%clk 0:00:35.3]} 59.
Kg6 {[%clk 0:00:08.8]} 59... Rf8 {[%clk 0:00:30.5]} 60. h7 {[%clk 0:00:08.7]}
60... Ke7 {[%clk 0:00:30.4]} 61. Re1+ {[%clk 0:00:07.6]} 61... Kd6 {[%clk
0:00:30.2]} 62. Kg7 {[%clk 0:00:07.8]} 1-0

[Event "*** Titled Tuesday Blitz"]
[Site "Chess.com"]
[Date "2021.04.06"]
[Round "4"]
[White "suneebaker"]
[Black "Sjakkerntobi"]
[Result "0-1"]
[WhiteElo "2123"]
[BlackElo "2395"]
[TimeControl "180+1"]
[EndTime "10:40:52 PDT"]
[Termination "Sjakkerntobi won on time"]

1. e4 {[%clk 0:03:00.9]} 1... e6 {[%clk 0:02:58.7]} 2. Nf3 {[%clk 0:03:00.7]}
2... d5 {[%clk 0:02:59.1]} 3. Nc3 {[%clk 0:03:01.2]} 3... d4 {[%clk 0:02:58.9]}
4. Ne2 {[%clk 0:03:00.7]} 4... c5 {[%clk 0:02:59.5]} 5. b4 {[%clk 0:03:00.7]}
5... Nc6 {[%clk 0:02:39.4]} 6. bxc5 {[%clk 0:02:59.4]} 6... Bxc5 {[%clk
0:02:39.1]} 7. c3 {[%clk 0:02:48.5]} 7... dxc3 {[%clk 0:02:38.7]} 8. Nxc3 {[%clk
0:02:43.8]} 8... Nf6 {[%clk 0:02:36.5]} 9. d4 {[%clk 0:02:35.7]} 9... Bb4 {[%clk
0:02:16.4]} 10. Bd2 {[%clk 0:02:32.6]} 10... O-O {[%clk 0:02:12.7]} 11. e5
{[%clk 0:02:20.8]} 11... Bxc3 {[%clk 0:01:54.4]} 12. Bxc3 {[%clk 0:02:19.8]}
12... Nd5 {[%clk 0:01:55.3]} 13. Bd2 {[%clk 0:02:18]} 13... b6 {[%clk
0:01:45.8]} 14. Bd3 {[%clk 0:02:17.4]} 14... h6 {[%clk 0:01:42.8]} 15. Qe2
{[%clk 0:02:12.6]} 15... Ndb4 {[%clk 0:01:15.7]} 16. Be4 {[%clk 0:01:56.2]}
16... Ba6 {[%clk 0:01:10.8]} 17. Qe3 {[%clk 0:01:47.9]} 17... Rc8 {[%clk
0:01:08.1]} 18. a3 {[%clk 0:01:35.8]} 18... Nd5 {[%clk 0:01:04.7]} 19. Qb3
{[%clk 0:01:28.4]} 19... Na5 {[%clk 0:00:39]} 20. Bxa5 {[%clk 0:01:22.6]} 20...
bxa5 {[%clk 0:00:39.9]} 21. Kd2 {[%clk 0:01:16.2]} 21... Nb6 {[%clk 0:00:17.8]}
22. Rhc1 {[%clk 0:01:11.1]} 22... a4 {[%clk 0:00:17.1]} 23. Qb4 {[%clk 0:00:58]}
23... Rc4 {[%clk 0:00:15.9]} 24. Rxc4 {[%clk 0:00:56.9]} 24... Nxc4+ {[%clk
0:00:16.8]} 25. Ke1 {[%clk 0:00:55.8]} 25... Qd7 {[%clk 0:00:17]} 26. Rc1 {[%clk
0:00:51.8]} 26... Rc8 {[%clk 0:00:16.1]} 27. Bd3 {[%clk 0:00:43.9]} 27... Qd5
{[%clk 0:00:11]} 28. Ke2 {[%clk 0:00:39.9]} 28... Rc6 {[%clk 0:00:08.6]} 29.
Qb8+ {[%clk 0:00:27]} 29... Rc8 {[%clk 0:00:05.9]} 30. Qxa7 {[%clk 0:00:24.7]}
30... Rc6 {[%clk 0:00:02.3]} 31. Qa8+ {[%clk 0:00:22.7]} 31... Rc8 {[%clk
0:00:01.8]} 32. Qxd5 {[%clk 0:00:22.1]} 32... exd5 {[%clk 0:00:02.7]} 33. Bxc4
{[%clk 0:00:19.6]} 33... Bxc4+ {[%clk 0:00:02.6]} 34. Kd2 {[%clk 0:00:19.2]}
34... Rb8 {[%clk 0:00:03.3]} 35. Rd1 {[%clk 0:00:18]} 35... Rb3 {[%clk
0:00:03.1]} 36. Ne1 {[%clk 0:00:16.4]} 36... Rxa3 {[%clk 0:00:03.4]} 37. Rb1
{[%clk 0:00:15.6]} 37... Ra2+ {[%clk 0:00:03]} 38. Ke3 {[%clk 0:00:13]} 38... a3
{[%clk 0:00:03.2]} 39. Rb8+ {[%clk 0:00:11.8]} 39... Kh7 {[%clk 0:00:03.2]} 40.
Ra8 {[%clk 0:00:11.7]} 40... Re2+ {[%clk 0:00:03.4]} 41. Kf3 {[%clk 0:00:11.1]}
41... Rxe1 {[%clk 0:00:04]} 42. Rxa3 {[%clk 0:00:10.9]} 42... Rd1 {[%clk
0:00:04.5]} 43. Ra7 {[%clk 0:00:09.7]} 43... Rxd4 {[%clk 0:00:04.6]} 44. Rxf7
{[%clk 0:00:08.7]} 44... Kg6 {[%clk 0:00:05.2]} 45. Rd7 {[%clk 0:00:08.2]} 45...
Re4 {[%clk 0:00:05.4]} 46. Kg3 {[%clk 0:00:06.1]} 46... Rxe5 {[%clk 0:00:05.1]}
47. f4 {[%clk 0:00:06.6]} 47... Re3+ {[%clk 0:00:04.9]} 48. Kf2 {[%clk 0:00:05]}
48... Re2+ {[%clk 0:00:04.7]} 49. Kf3 {[%clk 0:00:05.2]} 49... Re8 {[%clk
0:00:05.1]} 50. g4 {[%clk 0:00:04.3]} 50... Kf6 {[%clk 0:00:05]} 51. h4 {[%clk
0:00:04.1]} 51... Be2+ {[%clk 0:00:03.7]} 52. Kg3 {[%clk 0:00:03.1]} 52... Ke6
{[%clk 0:00:03.2]} 53. Rxg7 {[%clk 0:00:02.3]} 53... d4 {[%clk 0:00:03.3]} 0-1

[Event "*** Titled Tuesday Blitz"]
[Site "Chess.com"]
[Date "2021.04.06"]
[Round "4"]
[White "Kostya_Nikologorskiy"]
[Black "Chigorinetz"]
[Result "1-0"]
[WhiteElo "2677"]
[BlackElo "2507"]
[TimeControl "180+1"]
[EndTime "10:40:55 PDT"]
[Termination "Kostya_Nikologorskiy won by resignation"]

1. d4 {[%clk 0:03:00.9]} 1... d5 {[%clk 0:02:59.5]} 2. c4 {[%clk 0:03:00.7]}
2... Nc6 {[%clk 0:02:59.6]} 3. Nf3 {[%clk 0:02:56.2]} 3... Bg4 {[%clk
0:02:58.9]} 4. e3 {[%clk 0:02:55.4]} 4... e6 {[%clk 0:02:58.5]} 5. Be2 {[%clk
0:02:51.9]} 5... Nf6 {[%clk 0:02:57.6]} 6. O-O {[%clk 0:02:51]} 6... a6 {[%clk
0:02:57.3]} 7. b3 {[%clk 0:02:46.5]} 7... Bd6 {[%clk 0:02:56.7]} 8. h3 {[%clk
0:02:46.7]} 8... Bh5 {[%clk 0:02:56.2]} 9. Bb2 {[%clk 0:02:47.1]} 9... O-O
{[%clk 0:02:55.6]} 10. Ne5 {[%clk 0:02:45.7]} 10... Bxe2 {[%clk 0:02:54.7]} 11.
Qxe2 {[%clk 0:02:46.6]} 11... Bxe5 {[%clk 0:02:50.2]} 12. dxe5 {[%clk
0:02:47.5]} 12... Nd7 {[%clk 0:02:34]} 13. e4 {[%clk 0:02:26.9]} 13... dxc4
{[%clk 0:02:28.3]} 14. Rd1 {[%clk 0:02:11.8]} 14... Qc8 {[%clk 0:02:23.1]} 15.
Qxc4 {[%clk 0:02:06.8]} 15... Ndxe5 {[%clk 0:02:21]} 16. Qc3 {[%clk 0:02:07.4]}
16... f6 {[%clk 0:02:19.6]} 17. f4 {[%clk 0:02:06.6]} 17... Ng6 {[%clk
0:02:19.1]} 18. Qg3 {[%clk 0:02:03.2]} 18... Qe8 {[%clk 0:02:12.5]} 19. Nc3
{[%clk 0:02:03.1]} 19... Rf7 {[%clk 0:02:05.5]} 20. h4 {[%clk 0:01:59.5]} 20...
Rd8 {[%clk 0:02:02.5]} 21. h5 {[%clk 0:01:57.4]} 21... Nf8 {[%clk 0:02:00.8]}
22. h6 {[%clk 0:01:57.6]} 22... Rfd7 {[%clk 0:01:41.5]} 23. f5 {[%clk
0:01:20.6]} 23... Ne5 {[%clk 0:01:31.1]} 24. fxe6 {[%clk 0:01:07.8]} 24... Nxe6
{[%clk 0:01:14.8]} 25. Nd5 {[%clk 0:01:06.9]} 25... Qg6 {[%clk 0:01:04.9]} 26.
Bxe5 {[%clk 0:00:55.1]} 26... fxe5 {[%clk 0:01:04.5]} 27. Qxe5 {[%clk
0:00:55.6]} 27... Qxh6 {[%clk 0:00:58]} 28. Rd3 {[%clk 0:00:37.7]} 28... c6
{[%clk 0:00:39]} 29. Rh3 {[%clk 0:00:35.3]} 29... Qg6 {[%clk 0:00:17.9]} 30. Rg3
{[%clk 0:00:35.1]} 30... Rxd5 {[%clk 0:00:16.3]} 31. exd5 {[%clk 0:00:29.3]}
31... Rxd5 {[%clk 0:00:17.2]} 32. Qb8+ {[%clk 0:00:25.8]} 32... Rd8 {[%clk
0:00:14.7]} 33. Qxd8+ {[%clk 0:00:26]} 33... Nxd8 {[%clk 0:00:14.4]} 34. Rxg6
{[%clk 0:00:26.7]} 34... hxg6 {[%clk 0:00:15.3]} 35. Rd1 {[%clk 0:00:26.6]}
35... Nf7 {[%clk 0:00:15.2]} 36. Rd7 {[%clk 0:00:26.6]} 36... b5 {[%clk
0:00:14.7]} 37. Ra7 {[%clk 0:00:24.5]} 37... Ne5 {[%clk 0:00:14.7]} 38. Rxa6
{[%clk 0:00:24.9]} 38... b4 {[%clk 0:00:12.8]} 39. Rb6 {[%clk 0:00:20.2]} 39...
c5 {[%clk 0:00:10.8]} 40. Kf2 {[%clk 0:00:20.3]} 40... Kf7 {[%clk 0:00:10.2]}
41. Ke3 {[%clk 0:00:20.6]} 41... g5 {[%clk 0:00:08.9]} 42. Ke4 {[%clk
0:00:20.7]} 42... Nd7 {[%clk 0:00:07.9]} 43. Rd6 {[%clk 0:00:20.8]} 43... Ke7
{[%clk 0:00:07.8]} 44. Rg6 {[%clk 0:00:20.2]} 44... Nf6+ {[%clk 0:00:07.3]} 45.
Kf5 {[%clk 0:00:18.5]} 45... Nd5 {[%clk 0:00:06.3]} 46. Rxg7+ {[%clk 0:00:18.4]}
46... Kd6 {[%clk 0:00:06.2]} 47. Rg6+ {[%clk 0:00:19]} 47... Kd7 {[%clk
0:00:04.3]} 48. Kxg5 {[%clk 0:00:19.5]} 48... Nc3 {[%clk 0:00:03.3]} 49. Ra6
{[%clk 0:00:19.9]} 49... Kc7 {[%clk 0:00:02.3]} 50. g4 {[%clk 0:00:19.8]} 50...
Kb7 {[%clk 0:00:02.5]} 51. Ra5 {[%clk 0:00:19]} 51... Kb6 {[%clk 0:00:02.7]} 52.
Ra8 {[%clk 0:00:19.6]} 52... Kb7 {[%clk 0:00:02.9]} 53. Re8 {[%clk 0:00:17.2]}
53... Nxa2 {[%clk 0:00:03]} 54. Kf6 {[%clk 0:00:17.9]} 54... Nc1 {[%clk
0:00:02.7]} 55. Re3 {[%clk 0:00:18.5]} 55... Kc6 {[%clk 0:00:02.8]} 56. g5
{[%clk 0:00:18.9]} 56... Nxb3 {[%clk 0:00:02.2]} 57. Rxb3 {[%clk 0:00:18.8]}
57... Kb5 {[%clk 0:00:02.7]} 58. g6 {[%clk 0:00:19.4]} 58... c4 {[%clk
0:00:03.6]} 59. Rb1 {[%clk 0:00:18.1]} 59... c3 {[%clk 0:00:03.8]} 60. g7 {[%clk
0:00:18.8]} 60... c2 {[%clk 0:00:04.6]} 61. Rg1 {[%clk 0:00:19]} 61... b3 {[%clk
0:00:04.9]} 62. g8=Q {[%clk 0:00:19.6]} 62... b2 {[%clk 0:00:05.3]} 63. Qb3+
{[%clk 0:00:20]} 1-0

[Event "*** Titled Tuesday Blitz"]
[Site "Chess.com"]
[Date "2021.04.06"]
[Round "4"]
[White "Giorno"]
[Black "Rodalquilar"]
[Result "0-1"]
[WhiteElo "2485"]
[BlackElo "2676"]
[TimeControl "180+1"]
[EndTime "10:40:56 PDT"]
[Termination "Rodalquilar won by checkmate"]

1. d4 {[%clk 0:03:00.9]} 1... d5 {[%clk 0:02:59.4]} 2. Nc3 {[%clk 0:03:00.2]}
2... Nf6 {[%clk 0:02:58.8]} 3. Bf4 {[%clk 0:03:00.5]} 3... a6 {[%clk 0:02:58.2]}
4. Qd2 {[%clk 0:02:59.2]} 4... e6 {[%clk 0:02:57.1]} 5. f3 {[%clk 0:02:59.1]}
5... c5 {[%clk 0:02:57.1]} 6. e3 {[%clk 0:02:58.9]} 6... Nc6 {[%clk 0:02:55.1]}
7. Nge2 {[%clk 0:02:58.1]} 7... Bd6 {[%clk 0:02:46.6]} 8. Bxd6 {[%clk 0:02:51]}
8... Qxd6 {[%clk 0:02:46.6]} 9. dxc5 {[%clk 0:02:47.5]} 9... Qxc5 {[%clk
0:02:46.5]} 10. O-O-O {[%clk 0:02:48.3]} 10... Bd7 {[%clk 0:02:44.7]} 11. Kb1
{[%clk 0:02:45]} 11... O-O-O {[%clk 0:02:43]} 12. Nd4 {[%clk 0:02:40.2]} 12...
Kb8 {[%clk 0:02:41.4]} 13. Be2 {[%clk 0:02:31.1]} 13... Rc8 {[%clk 0:02:41.2]}
14. Rhe1 {[%clk 0:02:29.2]} 14... Rhd8 {[%clk 0:02:40.2]} 15. Bf1 {[%clk
0:02:26.2]} 15... Qb6 {[%clk 0:02:28.6]} 16. Na4 {[%clk 0:02:23.1]} 16... Qc7
{[%clk 0:02:26.3]} 17. Nc5 {[%clk 0:02:16.2]} 17... Ka7 {[%clk 0:02:15.1]} 18.
Nxd7 {[%clk 0:02:06.6]} 18... Nxd7 {[%clk 0:02:09.8]} 19. Nxc6+ {[%clk
0:01:56.5]} 19... bxc6 {[%clk 0:02:06.3]} 20. Qd4+ {[%clk 0:01:57]} 20... Qb6
{[%clk 0:01:59.8]} 21. Qxg7 {[%clk 0:01:53.8]} 21... f6 {[%clk 0:01:53.4]} 22.
Rd3 {[%clk 0:01:48.1]} 22... Rc7 {[%clk 0:01:49.5]} 23. Rb3 {[%clk 0:01:40.8]}
23... Qa5 {[%clk 0:01:48.5]} 24. Rd1 {[%clk 0:01:38.3]} 24... Nc5 {[%clk
0:00:50.9]} 25. Qxf6 {[%clk 0:01:34.1]} 25... Rdd7 {[%clk 0:00:44.3]} 26. Ra3
{[%clk 0:01:21.7]} 26... Qb6 {[%clk 0:00:44.6]} 27. Qd4 {[%clk 0:01:14.5]} 27...
Rb7 {[%clk 0:00:45]} 28. b3 {[%clk 0:00:51.3]} 28... a5 {[%clk 0:00:44.8]} 29.
Qc3 {[%clk 0:00:46.1]} 29... a4 {[%clk 0:00:44.7]} 30. Rd4 {[%clk 0:00:39]}
30... Kb8 {[%clk 0:00:44.3]} 31. b4 {[%clk 0:00:34.4]} 31... e5 {[%clk
0:00:44.5]} 32. Rg4 {[%clk 0:00:28.7]} 32... e4 {[%clk 0:00:37.5]} 33. Rg8+
{[%clk 0:00:25.8]} 33... Kc7 {[%clk 0:00:13.1]} 34. Qe5+ {[%clk 0:00:13.6]}
34... Rd6 {[%clk 0:00:13.4]} 35. Rg7+ {[%clk 0:00:13.4]} 35... Nd7 {[%clk
0:00:13.8]} 36. Rxa4 {[%clk 0:00:12.2]} 36... Qxe3 {[%clk 0:00:12.1]} 37. Ba6
{[%clk 0:00:10.2]} 37... Rxb4+ {[%clk 0:00:07]} 38. Rxb4 {[%clk 0:00:08.5]}
38... Qe1+ {[%clk 0:00:07.9]} 39. Kb2 {[%clk 0:00:09.1]} 39... Qxb4+ {[%clk
0:00:08.8]} 40. Kc1 {[%clk 0:00:09.5]} 40... Qe1+ {[%clk 0:00:07.4]} 41. Kb2
{[%clk 0:00:10]} 41... e3 {[%clk 0:00:05.6]} 42. Bd3 {[%clk 0:00:07.3]} 42...
Qb4+ {[%clk 0:00:04.3]} 43. Ka1 {[%clk 0:00:05.9]} 43... Qe1+ {[%clk 0:00:04.9]}
44. Kb2 {[%clk 0:00:06.5]} 44... c5 {[%clk 0:00:05.5]} 45. Rxd7+ {[%clk
0:00:06]} 45... Kxd7 {[%clk 0:00:05.6]} 46. Bf5+ {[%clk 0:00:06.9]} 46... Kc6
{[%clk 0:00:06]} 47. Qe8+ {[%clk 0:00:07.1]} 47... Kb6 {[%clk 0:00:03.7]} 48.
Qb8+ {[%clk 0:00:07.7]} 48... Kc6 {[%clk 0:00:04]} 49. Qc8+ {[%clk 0:00:07.3]}
49... Kb5 {[%clk 0:00:03.4]} 50. Qb7+ {[%clk 0:00:07.4]} 50... Rb6 {[%clk
0:00:03.5]} 51. Bd3+ {[%clk 0:00:07.5]} 51... Ka5+ {[%clk 0:00:03.5]} 52. Qxb6+
{[%clk 0:00:08.1]} 52... Kxb6 {[%clk 0:00:03.9]} 53. Kb3 {[%clk 0:00:09]} 53...
Qd2 {[%clk 0:00:04.4]} 54. Bc4 {[%clk 0:00:09.9]} 54... e2 {[%clk 0:00:05.3]}
55. c3 {[%clk 0:00:10.6]} 55... dxc4+ {[%clk 0:00:05.5]} 56. Kxc4 {[%clk
0:00:10.3]} 56... e1=Q {[%clk 0:00:06.4]} 57. Kb3 {[%clk 0:00:11.2]} 57... Qxc3+
{[%clk 0:00:07.3]} 58. Ka4 {[%clk 0:00:11.3]} 58... Qb4# {[%clk 0:00:08.2]} 0-1